[Event "Titled Tuesday Blitz May 23 Early 2023"]
[White "Manukian, Artak"]
[Black "Boyer, Mahel"]
[WhiteFideId "13301373"]
[BlackFideId "45102422"]
[WhiteElo "2130"]
[BlackElo "2439"]
[Result "1-0"]
[Round "01"]
[TimeControl "180+2"]
[Date "2023.05.23"]
[WhiteClock "0:00:18"]
[BlackClock "0:00:10"]

1. e4 {[%clk 0:03:00]}  c5 {[%clk 0:02:50]} 2. Nf3 {[%clk 0:03:00]}  d6 {[%clk 0:02:46]} 3. Bb5+ {[%clk 0:02:59]}  Nc6 {[%clk 0:02:44]} 4. O-O {[%clk 0:02:58]}  Bd7 {[%clk 0:02:37]} 5. Re1 {[%clk 0:02:58]}  Nf6 {[%clk 0:02:14]} 6. c3 {[%clk 0:02:54]}  a6 {[%clk 0:02:13]} 7. Bxc6 {[%clk 0:02:50]}  Bxc6 {[%clk 0:02:13]} 8. d4 {[%clk 0:02:44]}  Bxe4 {[%clk 0:01:54]} 9. Bg5 {[%clk 0:02:41]}  Bd5 {[%clk 0:01:46]} 10. Bxf6 {[%clk 0:02:26]}  gxf6 {[%clk 0:01:45]} 11. Nbd2 {[%clk 0:02:12]}  cxd4 {[%clk 0:01:29]} 12. Nxd4 {[%clk 0:02:07]}  Rg8 {[%clk 0:01:25]} 13. g3 {[%clk 0:02:04]}  Qd7 {[%clk 0:00:48]} 14. Qh5 {[%clk 0:01:59]}  Rg5 {[%clk 0:00:45]} 15. Qxh7 {[%clk 0:01:59]}  O-O-O {[%clk 0:00:44]} 16. N2f3 {[%clk 0:01:43]}  Re5 {[%clk 0:00:09]} 17. Nxe5 {[%clk 0:01:41]}  dxe5 {[%clk 0:00:09]} 18. Nc2 {[%clk 0:01:25]}  Bc6 {[%clk 0:00:05]} 19. Ne3 {[%clk 0:01:15]}  e6 {[%clk 0:00:03]} 20. Rad1 {[%clk 0:01:12]}  Bd6 {[%clk 0:00:02]} 21. Nc4 {[%clk 0:01:05]}  Qe7 {[%clk 0:00:02]} 22. Nxd6+ {[%clk 0:00:43]}  Rxd6 {[%clk 0:00:02]} 23. Qc2 {[%clk 0:00:31]}  Qd7 {[%clk 0:00:01]} 24. Rxd6 {[%clk 0:00:30]}  Qxd6 {[%clk 0:00:02]} 25. Rd1 {[%clk 0:00:29]}  Qc5 {[%clk 0:00:02]} 26. Qd2 {[%clk 0:00:21]}  Kb8 {[%clk 0:00:02]} 27. Qd6+ {[%clk 0:00:21]}  Qxd6 {[%clk 0:00:02]} 28. Rxd6 {[%clk 0:00:22]}  Bd5 {[%clk 0:00:02]} 29. Rd8+ {[%clk 0:00:21]}  Kc7 {[%clk 0:00:02]} 30. Rf8 {[%clk 0:00:21]}  Kd6 {[%clk 0:00:01]} 31. Rxf7 {[%clk 0:00:21]}  f5 {[%clk 0:00:01]} 32. h4 {[%clk 0:00:21]}  Bf3 {[%clk 0:00:02]} 33. Kf1 {[%clk 0:00:18]}  b5 {[%clk 0:00:01]} 34. Ke1 {[%clk 0:00:18]}  e4 {[%clk 0:00:01]} 35. Ra7 {[%clk 0:00:18]}  Kc5 {[%clk 0:00:01]} 36. Rxa6 {[%clk 0:00:18]}  e5 {[%clk 0:00:02]} 37. Rf6 {[%clk 0:00:18]}  Bg4 {[%clk 0:00:03]} 38. h5 {[%clk 0:00:18]}  Bxh5 {[%clk 0:00:03]} 39. Rxf5 {[%clk 0:00:18]}  Bf3 {[%clk 0:00:04]} 40. Rxe5+ {[%clk 0:00:19]}  Kc4 {[%clk 0:00:05]} 41. b3+ {[%clk 0:00:18]}  Kd3 {[%clk 0:00:06]} 42. Rxb5 {[%clk 0:00:17]}  e3 {[%clk 0:00:05]} 43. fxe3 {[%clk 0:00:17]}  Kc2 {[%clk 0:00:04]} 44. Kf2 {[%clk 0:00:17]}  Kb2 {[%clk 0:00:05]} 45. Kxf3 {[%clk 0:00:16]}  Ka3 {[%clk 0:00:06]} 46. e4 {[%clk 0:00:16]}  Kb2 {[%clk 0:00:06]} 47. e5 {[%clk 0:00:17]}  Ka3 {[%clk 0:00:07]} 48. e6 {[%clk 0:00:17]}  Kb2 {[%clk 0:00:08]} 49. e7 {[%clk 0:00:17]}  Ka3 {[%clk 0:00:08]} 50. e8=Q {[%clk 0:00:18]}  Kb2 {[%clk 0:00:09]} 51. Qe2+ {[%clk 0:00:18]}  Ka3 {[%clk 0:00:10]} 52. Ra5# {[%clk 0:00:18]} 1-0


[Site "https://www.chess.com"]

[Event "Titled Tuesday Blitz May 23 Early 2023"]
[White "Shubenkova, Veronika"]
[Black "Smirnov, Pavel"]
[WhiteFideId "44124040"]
[BlackFideId "4123425"]
[WhiteElo "2060"]
[BlackElo "2520"]
[Result "1-0"]
[Round "01"]
[TimeControl "180+2"]
[Date "2023.05.23"]
[WhiteClock "0:00:38"]
[BlackClock "0:00:13"]

1. e4 {[%clk 0:02:58]}  e5 {[%clk 0:02:59]} 2. Nf3 {[%clk 0:02:51]}  Nc6 {[%clk 0:02:59]} 3. Bb5 {[%clk 0:02:51]}  a6 {[%clk 0:02:58]} 4. Bxc6 {[%clk 0:02:50]}  dxc6 {[%clk 0:02:59]} 5. O-O {[%clk 0:02:51]}  Bd6 {[%clk 0:02:59]} 6. d4 {[%clk 0:02:51]}  exd4 {[%clk 0:03:00]} 7. Qxd4 {[%clk 0:02:51]}  f6 {[%clk 0:03:00]} 8. e5 {[%clk 0:02:52]}  fxe5 {[%clk 0:03:00]} 9. Nxe5 {[%clk 0:02:53]}  Nf6 {[%clk 0:02:58]} 10. Bg5 {[%clk 0:02:49]}  Qe7 {[%clk 0:02:50]} 11. Re1 {[%clk 0:02:48]}  O-O {[%clk 0:02:46]} 12. Nc3 {[%clk 0:02:45]}  Bxe5 {[%clk 0:02:38]} 13. Rxe5 {[%clk 0:02:44]}  Qf7 {[%clk 0:02:37]} 14. Rae1 {[%clk 0:02:42]}  h6 {[%clk 0:02:13]} 15. Re7 {[%clk 0:02:39]}  Qg6 {[%clk 0:02:12]} 16. Bxf6 {[%clk 0:02:38]}  Rxf6 {[%clk 0:02:12]} 17. Qd8+ {[%clk 0:02:35]}  Kh7 {[%clk 0:01:56]} 18. Re8 {[%clk 0:02:34]}  Qf5 {[%clk 0:01:51]} 19. Ne4 {[%clk 0:02:26]}  Rf7 {[%clk 0:01:49]} 20. h4 {[%clk 0:02:11]}  b6 {[%clk 0:01:43]} 21. h5 {[%clk 0:02:05]}  Qxh5 {[%clk 0:01:38]} 22. Re3 {[%clk 0:01:55]}  Bb7 {[%clk 0:01:32]} 23. Rh8+ {[%clk 0:01:54]}  Kg6 {[%clk 0:01:32]} 24. Qd3 {[%clk 0:01:30]}  Qd5 {[%clk 0:00:30]} 25. Rg3+ {[%clk 0:01:24]}  Kf5 {[%clk 0:00:29]} 26. Nd6+ {[%clk 0:01:19]}  Ke6 {[%clk 0:00:28]} 27. Qxd5+ {[%clk 0:01:16]}  cxd5 {[%clk 0:00:28]} 28. Nxf7 {[%clk 0:01:16]}  Kxf7 {[%clk 0:00:28]} 29. Rf3+ {[%clk 0:01:08]}  Ke7 {[%clk 0:00:23]} 30. Re3+ {[%clk 0:01:04]}  Kf7 {[%clk 0:00:22]} 31. Rxa8 {[%clk 0:00:52]}  Bxa8 {[%clk 0:00:21]} 32. c3 {[%clk 0:00:53]}  c5 {[%clk 0:00:20]} 33. f4 {[%clk 0:00:53]}  Bc6 {[%clk 0:00:19]} 34. Re5 {[%clk 0:00:52]}  a5 {[%clk 0:00:19]} 35. g3 {[%clk 0:00:53]}  Kf6 {[%clk 0:00:19]} 36. a3 {[%clk 0:00:53]}  a4 {[%clk 0:00:20]} 37. Kf2 {[%clk 0:00:53]}  b5 {[%clk 0:00:19]} 38. Ke3 {[%clk 0:00:53]}  Bb7 {[%clk 0:00:19]} 39. Rh5 {[%clk 0:00:51]}  Bc6 {[%clk 0:00:19]} 40. g4 {[%clk 0:00:51]}  Bb7 {[%clk 0:00:17]} 41. Rf5+ {[%clk 0:00:51]}  Ke7 {[%clk 0:00:16]} 42. g5 {[%clk 0:00:51]}  hxg5 {[%clk 0:00:15]} 43. fxg5 {[%clk 0:00:51]}  Bc6 {[%clk 0:00:15]} 44. Kf4 {[%clk 0:00:51]}  Ke6 {[%clk 0:00:13]} 45. g6 {[%clk 0:00:47]}  Be8 {[%clk 0:00:12]} 46. Re5+ {[%clk 0:00:46]}  Kd7 {[%clk 0:00:12]} 47. Rxd5+ {[%clk 0:00:47]}  Kc6 {[%clk 0:00:12]} 48. Rg5 {[%clk 0:00:45]}  Kd6 {[%clk 0:00:12]} 49. Rg1 {[%clk 0:00:44]}  Bc6 {[%clk 0:00:12]} 50. Kg5 {[%clk 0:00:43]}  Be4 {[%clk 0:00:11]} 51. Rf1 {[%clk 0:00:42]}  Bd5 {[%clk 0:00:10]} 52. Rf8 {[%clk 0:00:38]}  Ke7 {[%clk 0:00:10]} 53. Rb8 {[%clk 0:00:38]}  Kd6 {[%clk 0:00:09]} 54. Rb6+ {[%clk 0:00:36]}  Bc6 {[%clk 0:00:08]} 55. Kf5 {[%clk 0:00:36]}  Kc7 {[%clk 0:00:08]} 56. Rxc6+ {[%clk 0:00:36]}  Kxc6 {[%clk 0:00:08]} 57. Ke6 {[%clk 0:00:36]}  b4 {[%clk 0:00:08]} 58. cxb4 {[%clk 0:00:36]}  cxb4 {[%clk 0:00:09]} 59. Kf7 {[%clk 0:00:36]}  bxa3 {[%clk 0:00:09]} 60. bxa3 {[%clk 0:00:36]}  Kb5 {[%clk 0:00:10]} 61. Kxg7 {[%clk 0:00:37]}  Kc4 {[%clk 0:00:11]} 62. Kf6 {[%clk 0:00:37]}  Kb3 {[%clk 0:00:12]} 63. g7 {[%clk 0:00:38]}  Kxa3 {[%clk 0:00:12]} 64. g8=Q {[%clk 0:00:39]}  Kb2 {[%clk 0:00:13]} 65. Qg7 {[%clk 0:00:39]}  a3 {[%clk 0:00:13]} 66. Kf5+ {[%clk 0:00:39]}  Kb1 {[%clk 0:00:13]} 67. Qg1+ {[%clk 0:00:39]}  Kb2 {[%clk 0:00:13]} 68. Qf2+ {[%clk 0:00:39]}  Kb3 {[%clk 0:00:14]} 69. Qe1 {[%clk 0:00:38]}  Kb2 {[%clk 0:00:15]} 70. Qd2+ {[%clk 0:00:39]}  Kb1 {[%clk 0:00:13]} 71. Qb4+ {[%clk 0:00:38]} 1-0


[Site "https://www.chess.com"]

[Event "Titled Tuesday Blitz May 23 Early 2023"]
[White "Toktomushev, Teimur"]
[Black "Averjanov, Alexey"]
[WhiteFideId "14176726"]
[BlackFideId "14109867"]
[WhiteElo "2116"]
[BlackElo "2763"]
[Result "0-1"]
[Round "01"]
[TimeControl "180+2"]
[Date "2023.05.23"]
[WhiteClock "0:00:00"]
[BlackClock "0:00:59"]

1. d4 {[%clk 0:02:52]}  d5 {[%clk 0:02:58]} 2. c4 {[%clk 0:02:52]}  dxc4 {[%clk 0:02:58]} 3. e3 {[%clk 0:02:51]}  Nf6 {[%clk 0:02:58]} 4. Bxc4 {[%clk 0:02:51]}  e6 {[%clk 0:02:58]} 5. Nf3 {[%clk 0:02:52]}  a6 {[%clk 0:02:58]} 6. O-O {[%clk 0:02:49]}  b5 {[%clk 0:02:58]} 7. Be2 {[%clk 0:02:48]}  Bb7 {[%clk 0:02:59]} 8. a4 {[%clk 0:02:48]}  b4 {[%clk 0:02:58]} 9. Nbd2 {[%clk 0:02:49]}  Nbd7 {[%clk 0:02:56]} 10. Nc4 {[%clk 0:02:48]}  c5 {[%clk 0:02:55]} 11. b3 {[%clk 0:02:48]}  Qc7 {[%clk 0:02:54]} 12. Bb2 {[%clk 0:02:47]}  Be7 {[%clk 0:02:52]} 13. Rc1 {[%clk 0:02:46]}  O-O {[%clk 0:02:50]} 14. Qc2 {[%clk 0:02:18]}  Rac8 {[%clk 0:02:47]} 15. Qb1 {[%clk 0:02:14]}  Rfd8 {[%clk 0:02:46]} 16. Rfd1 {[%clk 0:02:05]}  cxd4 {[%clk 0:02:43]} 17. Nce5 {[%clk 0:01:36]}  Qb8 {[%clk 0:02:38]} 18. Bxd4 {[%clk 0:01:36]}  Nxe5 {[%clk 0:02:28]} 19. Bxe5 {[%clk 0:01:27]}  Qa8 {[%clk 0:02:27]} 20. Rxd8+ {[%clk 0:01:13]}  Rxd8 {[%clk 0:02:24]} 21. Rc7 {[%clk 0:01:11]}  Nd5 {[%clk 0:02:20]} 22. Rc1 {[%clk 0:00:59]}  Bf6 {[%clk 0:02:14]} 23. Bf1 {[%clk 0:00:24]}  Nc3 {[%clk 0:02:06]} 24. Bxc3 {[%clk 0:00:13]}  bxc3 {[%clk 0:02:02]} 25. Be2 {[%clk 0:00:07]}  Be4 {[%clk 0:01:59]} 26. Qa2 {[%clk 0:00:08]}  Bxf3 {[%clk 0:01:41]} 27. Bxf3 {[%clk 0:00:08]}  Qa7 {[%clk 0:01:39]} 28. Rd1 {[%clk 0:00:04]}  Rd7 {[%clk 0:01:31]} 29. Qc2 {[%clk 0:00:03]}  g6 {[%clk 0:01:29]} 30. Rxd7 {[%clk 0:00:02]}  Qxd7 {[%clk 0:01:29]} 31. g3 {[%clk 0:00:03]}  Kg7 {[%clk 0:01:28]} 32. Kg2 {[%clk 0:00:03]}  a5 {[%clk 0:01:29]} 33. h4 {[%clk 0:00:04]}  h5 {[%clk 0:01:28]} 34. Be4 {[%clk 0:00:04]}  Qd6 {[%clk 0:01:27]} 35. Qd3 {[%clk 0:00:03]}  Qb4 {[%clk 0:01:23]} 36. Qc2 {[%clk 0:00:03]}  Be5 {[%clk 0:01:22]} 37. Bf3 {[%clk 0:00:03]}  Bf6 {[%clk 0:01:22]} 38. Be4 {[%clk 0:00:03]}  Qa3 {[%clk 0:01:21]} 39. Bf3 {[%clk 0:00:03]}  Qb2 {[%clk 0:01:20]} 40. Qxb2 {[%clk 0:00:03]}  cxb2 {[%clk 0:01:20]} 41. Be4 {[%clk 0:00:03]}  Bc3 {[%clk 0:01:19]} 42. Kf3 {[%clk 0:00:03]}  Kf6 {[%clk 0:01:19]} 43. Ke2 {[%clk 0:00:03]}  Ke5 {[%clk 0:01:20]} 44. Bc2 {[%clk 0:00:02]}  Kd5 {[%clk 0:01:16]} 45. f3 {[%clk 0:00:02]}  e5 {[%clk 0:01:15]} 46. g4 {[%clk 0:00:02]}  hxg4 {[%clk 0:01:04]} 47. fxg4 {[%clk 0:00:03]}  e4 {[%clk 0:01:04]} 48. h5 {[%clk 0:00:03]}  gxh5 {[%clk 0:01:05]} 49. gxh5 {[%clk 0:00:04]}  f5 {[%clk 0:01:06]} 50. Bb1 {[%clk 0:00:01]}  Ke5 {[%clk 0:01:05]} 51. Kd1 {[%clk 0:00:01]}  Kf6 {[%clk 0:01:05]} 52. Kc2 {[%clk 0:00:01]}  Be5 {[%clk 0:01:06]} 53. Kd1 {[%clk 0:00:02]}  Kg5 {[%clk 0:01:06]} 54. Ke2 {[%clk 0:00:01]}  Kxh5 {[%clk 0:01:06]} 55. Bc2 {[%clk 0:00:02]}  Bc3 {[%clk 0:01:05]} 56. Bb1 {[%clk 0:00:01]}  Kg4 {[%clk 0:01:05]} 57. Bc2 {[%clk 0:00:02]}  Kg5 {[%clk 0:01:02]} 58. Bb1 {[%clk 0:00:02]}  Kf6 {[%clk 0:01:03]} 59. Ba2 {[%clk 0:00:02]}  Ke5 {[%clk 0:01:02]} 60. Bb1 {[%clk 0:00:02]}  Kd5 {[%clk 0:01:02]} 61. Ba2 {[%clk 0:00:02]}  Kc5 {[%clk 0:01:02]} 62. Kd1 {[%clk 0:00:02]}  Kb4 {[%clk 0:01:02]} 63. Kc2 {[%clk 0:00:02]}  Ka3 {[%clk 0:01:01]} 64. Bb1 {[%clk 0:00:01]}  Bf6 {[%clk 0:01:00]} 65. Kd2 {[%clk 0:00:01]}  Kxb3 {[%clk 0:01:00]} 66. Ke2 {[%clk 0:00:01]}  Kxa4 {[%clk 0:00:59]} 67. Kd2 {[%clk 0:00:02]}  Kb3 {[%clk 0:00:59]} 68. Ke2 {[%clk 0:00:02]}  a4 {[%clk 0:00:59]} 69. Kd2 {[%clk 0:00:03]}  a3 {[%clk 0:00:59]} 70. Kd1 {[%clk 0:00:00]}  a2 {[%clk 0:00:59]} 0-1


[Site "https://www.chess.com"]

[Event "Titled Tuesday Blitz May 23 Early 2023"]
[White "Tatarinov, Dmitry"]
[Black "Ramirez Vido, Robert Yorisan"]
[WhiteFideId "24160067"]
[BlackFideId "3513823"]
[WhiteElo "2326"]
[BlackElo "2436"]
[Result "1-0"]
[Round "01"]
[TimeControl "180+2"]
[Date "2023.05.23"]
[WhiteClock "0:01:12"]
[BlackClock "0:00:00"]

1. e4 {[%clk 0:03:00]}  d6 {[%clk 0:02:58]} 2. d4 {[%clk 0:03:01]}  Nf6 {[%clk 0:02:57]} 3. Nc3 {[%clk 0:03:01]}  g6 {[%clk 0:02:57]} 4. Nf3 {[%clk 0:02:59]}  Bg7 {[%clk 0:02:56]} 5. Be2 {[%clk 0:02:59]}  O-O {[%clk 0:02:55]} 6. O-O {[%clk 0:03:00]}  e5 {[%clk 0:02:55]} 7. dxe5 {[%clk 0:02:58]}  dxe5 {[%clk 0:02:56]} 8. Qxd8 {[%clk 0:02:57]}  Rxd8 {[%clk 0:02:55]} 9. Nxe5 {[%clk 0:02:57]}  Nxe4 {[%clk 0:02:37]} 10. Nxf7 {[%clk 0:02:53]}  Nxc3 {[%clk 0:02:28]} 11. Bc4 {[%clk 0:02:47]}  Rd4 {[%clk 0:01:26]} 12. Ne5+ {[%clk 0:02:18]}  Rxc4 {[%clk 0:01:23]} 13. Nxc4 {[%clk 0:02:15]}  Ne2+ {[%clk 0:01:23]} 14. Kh1 {[%clk 0:02:15]}  Nxc1 {[%clk 0:01:21]} 15. Raxc1 {[%clk 0:02:15]}  Be6 {[%clk 0:01:19]} 16. Ne3 {[%clk 0:02:08]}  Nc6 {[%clk 0:01:17]} 17. c3 {[%clk 0:02:08]}  Bxa2 {[%clk 0:01:07]} 18. Rfd1 {[%clk 0:02:07]}  Be6 {[%clk 0:01:03]} 19. Nd5 {[%clk 0:02:02]}  Bxd5 {[%clk 0:00:56]} 20. Rxd5 {[%clk 0:02:02]}  Rd8 {[%clk 0:00:56]} 21. Rxd8+ {[%clk 0:02:01]}  Nxd8 {[%clk 0:00:57]} 22. Rd1 {[%clk 0:02:01]}  Nc6 {[%clk 0:00:50]} 23. f4 {[%clk 0:01:59]}  Bf8 {[%clk 0:00:40]} 24. Rd7 {[%clk 0:01:57]}  Bd6 {[%clk 0:00:38]} 25. g3 {[%clk 0:01:57]}  Ne7 {[%clk 0:00:31]} 26. Kg2 {[%clk 0:01:56]}  Kf8 {[%clk 0:00:27]} 27. Rd8+ {[%clk 0:01:52]}  Kf7 {[%clk 0:00:28]} 28. Kf3 {[%clk 0:01:52]}  a5 {[%clk 0:00:23]} 29. Rh8 {[%clk 0:01:44]}  h5 {[%clk 0:00:22]} 30. h3 {[%clk 0:01:44]}  b6 {[%clk 0:00:21]} 31. g4 {[%clk 0:01:43]}  hxg4+ {[%clk 0:00:22]} 32. hxg4 {[%clk 0:01:44]}  Nd5 {[%clk 0:00:18]} 33. f5 {[%clk 0:01:43]}  gxf5 {[%clk 0:00:18]} 34. gxf5 {[%clk 0:01:43]}  Kf6 {[%clk 0:00:17]} 35. Ke4 {[%clk 0:01:44]}  Ne7 {[%clk 0:00:17]} 36. Rh6+ {[%clk 0:01:43]}  Kg7 {[%clk 0:00:16]} 37. Rh1 {[%clk 0:01:40]}  Kf7 {[%clk 0:00:14]} 38. Rh6 {[%clk 0:01:31]}  Ng8 {[%clk 0:00:13]} 39. Rh7+ {[%clk 0:01:30]}  Kf8 {[%clk 0:00:12]} 40. Rh1 {[%clk 0:01:15]}  Nf6+ {[%clk 0:00:11]} 41. Kd3 {[%clk 0:01:16]}  Ke7 {[%clk 0:00:11]} 42. Kc4 {[%clk 0:01:16]}  Kd7 {[%clk 0:00:10]} 43. Rh6 {[%clk 0:01:14]}  Ng4 {[%clk 0:00:09]} 44. Rh7+ {[%clk 0:01:13]}  Kc6 {[%clk 0:00:00]} 45. Rg7 {[%clk 0:01:12]} 1-0


[Site "https://www.chess.com"]

[Event "Titled Tuesday Blitz May 23 Early 2023"]
[White "Fernandez Guillen, Ernesto J."]
[Black "Senft, Sean"]
[WhiteFideId "3512428"]
[BlackFideId "2044960"]
[WhiteElo "2429"]
[BlackElo "1989"]
[Result "1-0"]
[Round "01"]
[TimeControl "180+2"]
[Date "2023.05.23"]
[WhiteClock "0:00:44"]
[BlackClock "0:00:15"]

1. e4 {[%clk 0:02:58]}  c5 {[%clk 0:02:59]} 2. Nf3 {[%clk 0:02:57]}  d6 {[%clk 0:02:59]} 3. d4 {[%clk 0:02:57]}  cxd4 {[%clk 0:02:59]} 4. Nxd4 {[%clk 0:02:58]}  Nf6 {[%clk 0:02:59]} 5. Nc3 {[%clk 0:02:58]}  a6 {[%clk 0:02:59]} 6. Bc4 {[%clk 0:02:59]}  e6 {[%clk 0:02:59]} 7. Bb3 {[%clk 0:02:59]}  Nbd7 {[%clk 0:02:59]} 8. Bg5 {[%clk 0:03:00]}  Be7 {[%clk 0:02:59]} 9. f4 {[%clk 0:03:00]}  Qc7 {[%clk 0:02:47]} 10. Bxe6 {[%clk 0:02:59]}  fxe6 {[%clk 0:02:36]} 11. Nxe6 {[%clk 0:03:00]}  Qb6 {[%clk 0:02:36]} 12. Nxg7+ {[%clk 0:03:00]}  Kf7 {[%clk 0:02:33]} 13. Nf5 {[%clk 0:03:00]}  Qxb2 {[%clk 0:02:28]} 14. Nd5 {[%clk 0:02:59]}  Bd8 {[%clk 0:01:56]} 15. Nxd6+ {[%clk 0:02:32]}  Kf8 {[%clk 0:01:49]} 16. O-O {[%clk 0:02:20]}  h6 {[%clk 0:01:35]} 17. Rb1 {[%clk 0:01:40]}  Qa3 {[%clk 0:01:25]} 18. Nxc8 {[%clk 0:01:10]}  Nxd5 {[%clk 0:01:10]} 19. Qxd5 {[%clk 0:01:11]}  Rxc8 {[%clk 0:00:48]} 20. Qxd7 {[%clk 0:01:06]}  Qc5+ {[%clk 0:00:23]} 21. Kh1 {[%clk 0:01:06]}  Bb6 {[%clk 0:00:23]} 22. Rxb6 {[%clk 0:01:05]}  Qxb6 {[%clk 0:00:18]} 23. Qxc8+ {[%clk 0:01:04]}  Kg7 {[%clk 0:00:19]} 24. Qd7+ {[%clk 0:01:04]}  Kg6 {[%clk 0:00:19]} 25. Be7 {[%clk 0:00:48]}  Qb5 {[%clk 0:00:16]} 26. Qe6+ {[%clk 0:00:45]}  Kh5 {[%clk 0:00:15]} 27. g4# {[%clk 0:00:44]} 1-0


[Site "https://www.chess.com"]

[Event "Titled Tuesday Blitz May 23 Early 2023"]
[White "Kovalevsky, Stanislav"]
[Black "Karthik Rajaa"]
[WhiteFideId "13508598"]
[BlackFideId "25035215"]
[WhiteElo "2174"]
[BlackElo "2215"]
[Result "0-1"]
[Round "01"]
[TimeControl "180+2"]
[Date "2023.05.23"]
[WhiteClock "0:01:38"]
[BlackClock "0:02:09"]

1. c4 {[%clk 0:03:00]}  Nf6 {[%clk 0:02:59]} 2. Nc3 {[%clk 0:03:00]}  c5 {[%clk 0:02:59]} 3. g3 {[%clk 0:03:00]}  g6 {[%clk 0:02:58]} 4. Bg2 {[%clk 0:03:00]}  Bg7 {[%clk 0:02:59]} 5. a3 {[%clk 0:03:01]}  O-O {[%clk 0:02:59]} 6. b3 {[%clk 0:03:01]}  Nc6 {[%clk 0:02:58]} 7. Bb2 {[%clk 0:03:01]}  e6 {[%clk 0:02:59]} 8. e4 {[%clk 0:03:00]}  d5 {[%clk 0:02:50]} 9. exd5 {[%clk 0:02:59]}  exd5 {[%clk 0:02:50]} 10. Nxd5 {[%clk 0:02:51]}  Re8+ {[%clk 0:02:50]} 11. Ne2 {[%clk 0:02:46]}  Nxd5 {[%clk 0:02:49]} 12. Bxg7 {[%clk 0:02:46]}  Kxg7 {[%clk 0:02:43]} 13. O-O {[%clk 0:01:49]}  Nf6 {[%clk 0:02:42]} 14. Re1 {[%clk 0:01:46]}  Bg4 {[%clk 0:02:41]} 15. f3 {[%clk 0:01:46]}  Bf5 {[%clk 0:02:37]} 16. Nf4 {[%clk 0:01:46]}  Qd4+ {[%clk 0:02:35]} 17. Kh1 {[%clk 0:01:46]}  Rxe1+ {[%clk 0:02:32]} 18. Qxe1 {[%clk 0:01:46]}  Re8 {[%clk 0:02:33]} 19. Qc1 {[%clk 0:01:40]}  g5 {[%clk 0:02:28]} 20. Nd5 {[%clk 0:01:40]}  Nxd5 {[%clk 0:02:25]} 21. cxd5 {[%clk 0:01:41]}  Qxd5 {[%clk 0:02:25]} 22. d4 {[%clk 0:01:41]}  Qxd4 {[%clk 0:02:10]} 23. Qxg5+ {[%clk 0:01:41]}  Bg6 {[%clk 0:02:10]} 24. h4 {[%clk 0:01:38]}  Qxa1+ {[%clk 0:02:09]} 0-1


[Site "https://www.chess.com"]

[Event "Titled Tuesday Blitz May 23 Early 2023"]
[White "Wagner, Dennis"]
[Black "Mazurkiewicz, Michal"]
[WhiteFideId "24650684"]
[BlackFideId "1124943"]
[WhiteElo "2478"]
[BlackElo "2054"]
[Result "1-0"]
[Round "01"]
[TimeControl "180+2"]
[Date "2023.05.23"]
[WhiteClock "0:00:05"]
[BlackClock "0:00:00"]

1. e4 {[%clk 0:02:59]}  d6 {[%clk 0:02:59]} 2. d4 {[%clk 0:02:59]}  Nf6 {[%clk 0:03:00]} 3. Nc3 {[%clk 0:02:59]}  c6 {[%clk 0:03:00]} 4. f4 {[%clk 0:02:58]}  Qb6 {[%clk 0:03:00]} 5. e5 {[%clk 0:02:49]}  Nd5 {[%clk 0:03:00]} 6. Nxd5 {[%clk 0:02:47]}  cxd5 {[%clk 0:03:01]} 7. c3 {[%clk 0:02:46]}  Nc6 {[%clk 0:03:01]} 8. Nf3 {[%clk 0:02:44]}  Bg4 {[%clk 0:03:01]} 9. Bd3 {[%clk 0:02:43]}  e6 {[%clk 0:03:01]} 10. h3 {[%clk 0:02:42]}  Bxf3 {[%clk 0:03:01]} 11. Qxf3 {[%clk 0:02:43]}  g6 {[%clk 0:03:01]} 12. Qf2 {[%clk 0:02:28]}  Be7 {[%clk 0:02:54]} 13. Be3 {[%clk 0:02:26]}  O-O-O {[%clk 0:02:44]} 14. O-O {[%clk 0:02:20]}  Kb8 {[%clk 0:02:44]} 15. b4 {[%clk 0:02:18]}  Rc8 {[%clk 0:02:42]} 16. a4 {[%clk 0:02:18]}  h5 {[%clk 0:02:06]} 17. a5 {[%clk 0:02:14]}  Qc7 {[%clk 0:02:06]} 18. Rfb1 {[%clk 0:02:10]}  Rhg8 {[%clk 0:00:47]} 19. Qa2 {[%clk 0:01:44]}  Nd8 {[%clk 0:00:38]} 20. Rb3 {[%clk 0:01:41]}  g5 {[%clk 0:00:36]} 21. b5 {[%clk 0:01:32]}  Qd7 {[%clk 0:00:36]} 22. Qf2 {[%clk 0:01:19]}  g4 {[%clk 0:00:32]} 23. hxg4 {[%clk 0:01:14]}  hxg4 {[%clk 0:00:33]} 24. Qg3 {[%clk 0:01:08]}  f5 {[%clk 0:00:33]} 25. exf6 {[%clk 0:00:50]}  Bxf6 {[%clk 0:00:33]} 26. Re1 {[%clk 0:00:44]}  Qg7 {[%clk 0:00:27]} 27. a6 {[%clk 0:00:18]}  b6 {[%clk 0:00:26]} 28. f5 {[%clk 0:00:12]}  e5 {[%clk 0:00:24]} 29. dxe5 {[%clk 0:00:11]}  dxe5 {[%clk 0:00:23]} 30. Bd4 {[%clk 0:00:11]}  Nf7 {[%clk 0:00:20]} 31. Rb2 {[%clk 0:00:12]}  Rc7 {[%clk 0:00:10]} 32. Bf2 {[%clk 0:00:08]}  Rxc3 {[%clk 0:00:07]} 33. Rc2 {[%clk 0:00:06]}  Rxc2 {[%clk 0:00:06]} 34. Bxc2 {[%clk 0:00:06]}  Rh8 {[%clk 0:00:06]} 35. Bb3 {[%clk 0:00:06]}  Qh6 {[%clk 0:00:00]} 36. Kf1 {[%clk 0:00:05]} 1-0


[Site "https://www.chess.com"]